bitfinex/quotes_ETHUSD_20251117
["timestamp","ask_amount","ask_price","bid_price","bid_amount"]
[1763389408773,0.876804,3130.2,3130.1,0.001]
[1763389409116,0.405504,3130.1,3129.8,0.001]
[1763389409344,0.975604,3129.9,3129.8,0.001]
[1763389409551,1.470404,3129.9,3129.8,0.001]
[1763389410415,0.405504,3129.9,3129.8,0.001]
[1763389410672,0.1421,3130.8,3129.8,0.2044]
[1763389410978,0.1962,3129.9,3129.8,0.001]
[1763389411318,0.405504,3130.2,3129.8,0.001]
[1763389411817,1.073004,3129.9,3129.8,0.001]
[1763389412441,1.567804,3129.9,3129.8,0.001]
[1763389413348,1.073004,3129.9,3129.8,0.001]
[1763389414694,1.567804,3129.9,3129.8,0.001]
[1763389416993,0.90699264,3130.6,3129.8,0.001]
[1763389417214,0.1421,3130.8,3129.8,0.001]
[1763389417363,0.6369,3130.8,3129.8,0.001]
[1763389417793,0.1421,3130.8,3129.8,0.001]
[1763389418136,0.6369,3130.8,3129.8,0.001]
[1763389418824,0.1421,3130.8,3129.8,0.001]
[1763389419000,0.002,3131.8,3130.7,0.1066]
[1763389419001,0.4948,3131.6,3130.7,0.1066]
[1763389419195,0.4948,3131.6,3129.8,0.001]
[1763389419719,0.4948,3131.6,3129.8,0.2044]
[1763389420097,0.405504,3131.5,3129.8,0.001]
[1763389420427,0.405504,3131.3,3129.8,0.001]
[1763389420921,0.405504,3131.1,3129.8,0.001]
[1763389421327,0.405504,3130.9,3129.8,0.001]
[1763389421686,0.405504,3130.7,3129.8,0.001]
[1763389422229,0.900304,3130.7,3129.8,0.001]
[1763389422603,0.405504,3130.5,3129.8,0.001]
[1763389422928,0.404704,3130.5,3129.8,0.001]
[1763389423227,0.1962,3129.9,3129.8,0.001]
[1763389423400,0.6675,3129.9,3129.8,0.001]
[1763389423602,1.1623,3129.9,3129.8,0.001]
[1763389424823,1.1623,3129.9,3129.6,0.001]
[1763389424995,0.876804,3129.7,3129.6,0.001]
[1763389425192,1.371604,3129.7,3129.6,0.001]
[1763389427228,0.1962,3129.9,3129.6,0.001]
[1763389427626,0.405504,3129.8,3129.6,0.001]
[1763389428723,0.900304,3129.8,3129.6,0.001]
[1763389429417,0.876804,3129.7,3129.6,0.001]
[1763389429620,1.371604,3129.7,3129.6,0.001]
[1763389429831,0.405504,3129.7,3129.6,0.001]
[1763389431127,1.371604,3129.7,3129.6,0.001]
[1763389431293,0.405504,3129.4,3129.3,0.001]
[1763389431502,1.371604,3129.4,3129.3,0.001]
[1763389433858,0.876804,3129.4,3129.3,0.001]
[1763389434060,0.405504,3129.7,3129.3,0.001]
[1763389434250,0.1962,3129.9,3129.3,0.001]
[1763389434447,0.405504,3129.8,3129.3,0.001]
[1763389434647,0.691,3129.9,3129.3,0.001]
[1763389434852,0.4948,3129.8,3129.3,0.001]
[1763389435044,0.405504,3129.7,3129.3,0.001]
[1763389435245,0.405504,3129.8,3129.3,0.001]
[1763389435440,0.1962,3129.9,3129.3,0.001]
[1763389435441,0.405504,3129.5,3129.3,0.001]
[1763389435646,0.876804,3129.4,3129.3,0.001]
[1763389436035,1.371604,3129.4,3129.3,0.001]
[1763389436489,0.405504,3129.3,3129.1,0.005]
[1763389436771,0.876804,3129.2,3129.1,0.005]
[1763389437270,0.405504,3129.2,3129.1,0.005]
[1763389438536,1.326104,3129.2,3129.1,0.005]
[1763389438764,0.857204,3129.2,3129.1,0.005]
[1763389439069,0.4689,3129.8,3129.1,0.2094]
[1763389439268,0.405504,3129.7,3128.3,1.14703436]
[1763389440068,0.405504,3129.6,3128.3,1.14703436]
[1763389440276,0.405504,3129.5,3128.2,1.14703436]
[1763389440485,0.405504,3129.5,3127.7,1.14703436]
[1763389440649,0.9008356,3129.6,3127.6,0.001]
[1763389440650,1.31249664,3129.2,3127.6,0.001]
[1763389440835,1.31249664,3128.8,3127.6,0.001]
[1763389441043,0.405504,3128.8,3127.6,0.001]
[1763389441273,0.405504,3128.6,3127.6,0.001]
[1763389441679,0.405504,3128.4,3127.6,0.001]
[1763389442050,0.405504,3128.2,3127.6,0.001]
[1763389442481,0.405504,3128.1,3127.6,0.001]
[1763389442864,0.857204,3128.0,3127.6,0.001]
[1763389443180,2.19613224,3128.0,3127.6,0.001]
[1763389443377,3.33142337,3128.0,3127.6,0.001]
[1763389444685,0.405504,3127.9,3127.6,0.001]
[1763389444851,1.043704,3127.7,3127.6,0.001]
[1763389445255,9.83083904,3127.7,3127.6,0.001]
[1763389445457,11.78669733,3127.7,3127.6,0.001]
[1763389445867,3.23549664,3127.6,3127.2,0.001]
[1763389446058,9.17543904,3127.3,3127.2,0.001]
[1763389446489,0.857204,3127.3,3127.2,0.001]
[1763389446877,1.326104,3127.3,3127.2,0.001]
[1763389447056,0.1865,3127.7,3127.2,0.001]
[1763389448073,0.4319356,3128.5,3127.2,0.001]
[1763389448074,0.1865,3128.1,3127.2,0.001]
[1763389448300,8.50473504,3128.7,3127.2,0.001]
[1763389448487,1.0838635,3128.7,3127.2,0.001]
[1763389448709,0.1865,3128.7,3127.2,0.001]
[1763389451207,0.405504,3128.5,3127.2,0.03297748]
[1763389451409,0.405504,3128.5,3127.2,0.001]
[1763389451574,0.405504,3128.6,3127.2,0.001]
[1763389451776,1.78139664,3128.6,3127.2,0.001]
[1763389451971,1.31249664,3128.2,3127.2,0.001]
[1763389452380,1.78139664,3128.2,3127.2,0.001]
[1763389452705,0.405504,3128.0,3127.2,0.001]
[1763389454088,0.4689,3128.1,3127.2,0.001]
[1763389454089,0.405504,3128.1,3127.2,0.001]
[1763389454288,0.4689,3128.6,3127.2,0.03297748]
[1763389454492,0.4689,3128.6,3127.2,0.001]
[1763389454688,1.31249664,3128.4,3127.2,0.001]
[1763389454893,0.405504,3128.2,3127.2,0.001]
[1763389455617,0.405504,3128.0,3127.2,0.001]
[1763389455786,0.405504,3128.2,3127.2,0.001]
[1763389455981,0.874404,3128.2,3127.2,0.001]
[1763389456307,0.405504,3128.2,3127.2,0.001]
[1763389456509,1.10196098,3128.2,3127.2,0.001]
[1763389456684,0.405504,3128.0,3127.2,0.001]
[1763389458608,0.493,3129.4,3127.2,0.93997012]
[1763389458913,2.1307426,3129.7,3127.9,1.14703436]
[1763389459108,0.405504,3129.4,3127.9,1.14703436]
[1763389459347,0.405504,3129.4,3127.9,0.28675859]
[1763389459520,0.405504,3129.0,3127.5,1.14703436]
[1763389459695,0.405504,3128.8,3127.5,1.14703436]
[1763389460029,0.405504,3128.8,3127.4,1.14703436]
[1763389460206,0.405504,3128.6,3127.4,1.14703436]
[1763389460403,0.405504,3128.6,3127.5,0.2054027]
[1763389460605,0.405504,3128.5,3127.5,0.2054027]
[1763389460805,0.405504,3128.5,3127.2,0.001]
[1763389461134,0.405504,3128.3,3127.2,0.001]
[1763389461635,0.90699264,3128.8,3127.2,0.001]
[1763389461636,0.405504,3128.8,3127.2,0.001]
[1763389461837,0.405504,3128.8,3127.6,1.14703436]
[1763389462017,0.405504,3128.8,3127.6,1.43379295]
[1763389462396,1.31249664,3128.6,3127.5,1.14703436]
[1763389462697,1.31249664,3128.6,3127.2,0.001]
[1763389462698,1.31249664,3128.6,3127.2,1.14803436]
[1763389462919,0.405504,3128.2,3127.2,0.001]
[1763389463340,0.405504,3128.4,3127.2,1.18001184]
[1763389463716,0.405504,3128.4,3127.2,1.14803436]
[1763389463918,1.31249664,3128.2,3127.2,0.001]
[1763389464449,1.80549664,3128.2,3127.2,0.001]
[1763389465058,1.31249664,3128.2,3127.2,0.03297748]
[1763389465356,1.31249664,3128.2,3127.2,0.001]
[1763389465357,0.405504,3128.2,3127.2,0.001]
[1763389466251,1.6377426,3129.7,3127.3,1.14703436]
[1763389466455,0.6831,3128.9,3127.3,1.14703436]
[1763389466617,0.6831,3128.9,3127.4,1.14703436]
[1763389466618,0.90699264,3128.6,3127.4,1.14703436]
[1763389466819,8.31823504,3128.7,3127.4,1.14703436]
[1763389467014,1.39999264,3128.6,3127.4,1.14703436]
[1763389467449,0.886204,3128.5,3127.4,1.14703436]
[1763389468056,0.405504,3128.3,3127.4,1.14703436]
[1763389468219,0.405504,3128.1,3127.3,1.14703436]
[1763389468567,0.405504,3128.1,3127.2,0.001]
[1763389468568,0.405504,3127.7,3127.2,0.001]
[1763389468756,1.2778779,3127.7,3127.2,0.001]
[1763389468958,0.404704,3127.7,3127.2,0.001]
[1763389469168,0.1806,3128.5,3127.2,0.03297748]
[1763389469465,0.1806,3128.5,3127.2,1.14803436]
[1763389469636,1.56829264,3128.5,3127.2,1.14803436]
[1763389469980,1.56829264,3128.5,3127.3,1.14703436]
[1763389470158,1.56829264,3128.5,3127.5,1.14703436]
[1763389470455,2.55694541,3128.5,3127.5,1.14703436]
[1763389470675,2.55694541,3128.5,3127.4,1.14703436]
[1763389470829,0.4807,3128.4,3127.4,1.14703436]
[1763389471027,0.405504,3128.3,3127.4,1.14703436]
[1763389471354,0.70174894,3128.3,3127.3,1.14703436]
[1763389471521,1.31249664,3128.1,3127.3,1.14703436]
[1763389471726,1.31249664,3128.1,3127.2,0.001]
[1763389471938,0.405504,3127.9,3127.2,0.001]
[1763389472137,1.78339664,3127.3,3127.2,0.001]
[1763389472344,3.27425981,3127.3,3127.2,0.001]
[1763389472660,3.27425981,3127.3,3126.8,0.001]
[1763389472661,1.357104,3127.2,3126.8,0.001]
[1763389472838,9.37523904,3126.9,3126.8,0.001]
[1763389473041,10.28223168,3126.9,3126.8,0.001]
[1763389473239,11.17178035,3126.9,3126.8,0.001]
[1763389473644,1.31249664,3126.8,3125.3,0.001]
[1763389473839,0.876404,3126.6,3125.3,0.03299692]
[1763389474081,0.876404,3126.6,3125.3,0.001]
[1763389474358,1.357104,3126.6,3125.3,0.001]
[1763389474742,1.58351366,3126.6,3125.3,0.001]
[1763389475157,0.405504,3126.5,3125.3,0.001]
[1763389475465,0.405504,3125.6,3125.3,0.001]
[1763389475764,0.405504,3126.2,3125.4,0.002]
[1763389476062,0.405504,3126.3,3125.5,0.002]
[1763389476265,8.97953504,3127.3,3126.1,0.002]
[1763389476429,8.31823504,3127.3,3126.2,0.002]
[1763389476631,0.1806,3127.6,3126.2,0.004]
[1763389476938,1.08759264,3127.6,3126.2,0.004]
[1763389477141,0.1806,3127.6,3126.3,0.002]
[1763389477386,8.31823504,3127.3,3126.2,0.002]
[1763389477666,0.405504,3127.1,3125.9,1.14703436]
[1763389478072,0.405504,3127.1,3125.9,1.14903436]
[1763389478279,0.405504,3127.1,3126.0,0.002]
[1763389478471,0.405504,3127.1,3126.0,1.18102412]
[1763389478666,0.405504,3127.1,3126.1,0.002]
[1763389479587,0.405504,3127.1,3125.9,1.14803436]
[1763389479788,1.31249664,3126.8,3125.9,1.14803436]
[1763389479994,1.31249664,3126.8,3125.9,0.001]
[1763389480189,1.79319664,3126.8,3125.9,0.001]
[1763389481253,1.31249664,3126.8,3125.9,0.001]
[1763389482113,1.31249664,3126.8,3125.9,0.003]
[1763389482309,0.405504,3127.0,3125.9,0.003]
[1763389482514,0.58482366,3127.0,3125.9,0.003]
[1763389483222,1.31249664,3126.8,3125.9,0.001]
[1763389483598,0.405504,3126.6,3125.9,0.001]
[1763389484110,0.405504,3126.5,3125.9,0.001]
[1763389484635,0.876404,3126.0,3125.9,0.001]
[1763389485122,3.18356054,3126.0,3125.9,0.001]
[1763389485279,0.405504,3125.9,3125.5,0.001]
[1763389485492,10.28223168,3125.6,3125.5,0.001]
[1763389486011,10.76293168,3125.6,3125.5,0.001]
[1763389486325,11.83922485,3125.6,3125.5,0.001]
[1763389487794,11.83922485,3125.6,3125.2,0.001]
[1763389487795,0.405504,3125.3,3125.2,0.001]
[1763389488003,0.405504,3125.3,3124.9,0.001]
[1763389488004,0.876404,3125.3,3124.9,0.001]
[1763389488182,0.405504,3124.8,3122.9,1.14703436]
[1763389488378,0.405504,3124.8,3123.3,0.004]
[1763389488582,0.405504,3124.8,3122.9,2.08604851]
[1763389488583,0.405504,3123.9,3122.9,1.14703436]
[1763389488836,0.1806,3124.7,3122.2,2.29406873]
[1763389488837,0.90699264,3124.2,3123.0,0.03602049]
[1763389488995,0.405504,3124.1,3123.0,0.004]
[1763389489414,1.04446761,3124.1,3123.0,0.004]
[1763389489836,0.405504,3124.1,3123.0,0.004]
[1763389490057,0.405504,3124.5,3123.1,0.03201946]
[1763389490361,0.405504,3124.5,3123.0,0.03602049]
[1763389490664,0.405504,3124.5,3123.1,0.004]
[1763389491017,0.405504,3124.5,3123.2,0.03201844]
[1763389491219,0.405504,3124.5,3123.3,0.004]
[1763389491417,0.1806,3124.7,3123.3,0.004]
[1763389492115,0.1798,3124.7,3123.3,0.004]
[1763389492334,0.90699264,3125.0,3123.3,0.004]
[1763389492534,8.31823504,3125.1,3123.4,0.03201639]
[1763389492743,8.79893504,3125.5,3123.4,0.03201639]
[1763389492946,0.405504,3125.3,3123.5,0.0048]
[1763389493424,0.405504,3125.1,3123.5,0.03681536]
[1763389493946,0.8979535,3125.4,3123.5,0.03681536]
[1763389493947,0.8979535,3125.4,3123.6,0.0048]
[1763389494125,1.38769264,3125.8,3123.6,0.0048]
[1763389494326,0.405504,3125.5,3123.7,0.03201331]
[1763389494651,0.4807,3125.8,3123.7,1.17904767]
[1763389494816,1.38769264,3125.8,3123.8,0.0048]
[1763389495019,1.38769264,3125.8,3123.9,0.03201126]
[1763389495351,0.405504,3125.7,3124.0,0.0048]
[1763389496873,0.405504,3125.5,3124.0,0.0048]
[1763389497823,0.405504,3125.4,3124.0,0.0048]
[1763389498149,1.87758541,3125.8,3124.0,0.0048]
[1763389498447,0.002,3125.3,3124.0,1.15183436]
[1763389498852,0.002,3125.3,3124.1,1.15183436]
[1763389499015,0.002,3125.3,3124.1,0.0048]
[1763389499219,0.002,3125.3,3124.2,0.0048]
[1763389500264,0.405504,3125.2,3124.0,1.14703436]
[1763389500469,0.465,3125.3,3124.1,0.03200921]
[1763389500470,0.405504,3125.0,3124.1,0.03200921]
[1763389500646,0.465,3125.3,3123.8,0.0048]
[1763389500647,0.405504,3125.2,3123.8,0.0048]
[1763389500818,0.405504,3124.8,3123.8,0.0048]
[1763389501016,0.405504,3124.8,3123.5,1.14803436]
[1763389501227,0.405504,3124.8,3123.6,1.15183436]
[1763389501428,0.002,3125.3,3124.7,0.0048]
[1763389501632,0.002,3125.3,3124.0,0.0048]
[1763389501854,0.002,3125.3,3124.1,0.03200921]
[1763389502224,0.002,3125.3,3124.2,0.0048]
[1763389502925,0.002,3125.3,3125.2,0.0048]
[1763389503254,0.002,3125.3,3124.8,1.14703436]
[1763389503557,0.002,3125.3,3124.2,0.0048]
[1763389503852,0.405504,3125.2,3124.1,1.14703436]
[1763389504057,0.002,3125.3,3124.2,1.18384255]
[1763389504480,0.002,3125.3,3125.2,0.0048]
[1763389504835,0.002,3125.3,3125.2,0.0096]
[1763389505447,0.002,3125.3,3124.9,1.14703436]
[1763389505752,0.002,3125.3,3124.7,1.14703436]
[1763389505946,0.002,3125.3,3124.6,1.14703436]
[1763389506152,0.002,3125.3,3125.2,0.0048]
[1763389506364,0.002,3125.3,3124.7,1.15183436]
[1763389506538,0.002,3125.3,3124.7,1.52977221]
[1763389507077,0.002,3125.3,3124.7,1.52497221]
[1763389507449,0.002,3125.3,3125.2,0.0048]
[1763389507769,0.002,3125.3,3124.7,1.52497221]
[1763389508009,0.002,3125.3,3124.8,1.1790364]
[1763389508281,0.002,3125.3,3125.2,0.0048]
[1763389508459,0.002,3125.3,3125.2,0.0096]
[1763389508664,0.002,3125.3,3125.2,0.0048]
[1763389508860,0.9462,3125.3,3124.7,1.14703436]
[1763389509060,0.405504,3125.2,3124.4,1.14703436]
[1763389509248,0.405504,3125.2,3124.5,1.14703436]
[1763389509449,0.002,3125.3,3124.3,1.14703436]
[1763389509692,0.405504,3125.1,3124.2,1.14703436]
[1763389509897,0.405504,3125.1,3124.1,1.14703436]
[1763389510096,0.405504,3124.9,3124.1,1.14703436]
[1763389510239,0.463,3124.8,3124.2,1.14703436]
[1763389510444,0.463,3124.8,3123.9,1.14703436]
[1763389510677,0.588804,3124.9,3123.9,1.17904562]
[1763389510852,0.1833,3125.1,3123.9,1.15183436]
[1763389511049,0.463,3125.0,3123.9,1.15183436]
[1763389511591,0.463,3125.0,3123.9,1.43427295]
[1763389511825,0.1833,3125.1,3123.9,1.43427295]
[1763389512101,0.405504,3125.0,3124.0,1.14703436]
[1763389512503,0.405504,3124.8,3124.0,1.14703436]
[1763389512878,0.463,3124.8,3124.0,1.14703436]
[1763389513378,0.405504,3125.0,3124.0,1.14703436]
[1763389513578,0.405504,3125.0,3124.1,0.03200921]
[1763389513784,0.6463,3125.1,3124.1,1.14703436]
[1763389513983,0.405504,3125.0,3124.1,1.43427295]
[1763389514303,0.405504,3125.0,3124.4,1.14703436]
[1763389514708,0.405504,3125.0,3124.3,1.14703436]
[1763389514909,0.868504,3125.0,3124.3,1.14703436]
[1763389515114,0.867704,3125.0,3124.2,1.14703436]
[1763389515575,0.867704,3125.0,3124.2,1.43379295]
[1763389515776,0.867704,3125.0,3124.2,1.14703436]
[1763389516470,0.4711,3124.9,3124.2,1.14703436]
[1763389517103,0.405504,3124.8,3124.2,1.14703436]
[1763389517494,0.876604,3124.8,3124.2,1.14703436]
[1763389517720,0.876604,3124.8,3124.0,1.14703436]
[1763389517721,0.405504,3124.2,3124.0,1.14703436]
[1763389518074,0.405504,3124.3,3124.0,1.14703436]
[1763389518276,0.405504,3124.2,3124.0,1.14703436]
[1763389518705,0.405504,3124.0,3123.8,1.14703436]
[1763389519291,0.405504,3123.8,3123.7,1.14703436]
[1763389519492,0.405504,3123.8,3123.5,0.001]
[1763389519493,0.405504,3123.6,3123.5,0.001]
[1763389520696,0.405504,3124.1,3123.5,0.0058]
[1763389520895,0.405504,3123.9,3123.5,0.001]
[1763389521130,0.888604,3123.6,3123.5,0.001]
[1763389521482,1.359704,3123.6,3123.5,0.001]
[1763389521981,1.359704,3123.6,3123.1,0.001]
[1763389521982,0.405504,3123.5,3123.1,0.001]
[1763389522183,10.36109739,3123.2,3123.1,0.001]
[1763389522600,10.83219739,3123.2,3123.1,0.001]
[1763389522805,2.26669664,3123.2,3123.1,0.001]
[1763389524718,0.1821,3124.4,3123.1,0.0126]
[1763389524905,0.1821,3124.4,3123.6,0.0058]
[1763389525079,0.4711,3124.3,3123.1,0.001]
[1763389525400,1.39297008,3124.3,3123.1,0.001]
[1763389525600,0.4711,3124.3,3123.1,0.03301946]
[1763389526201,0.4711,3124.3,3123.1,0.03881946]
[1763389526416,0.1821,3124.4,3123.2,0.0058]
[1763389526618,0.405504,3124.3,3123.3,0.03201741]
[1763389526858,0.6532,3124.4,3123.1,0.001]
[1763389527137,0.405504,3124.2,3123.2,0.0058]
[1763389527501,0.4711,3124.7,3123.3,0.03201741]
[1763389527740,0.002,3126.0,3123.4,0.03781639]
[1763389527741,0.5008,3125.3,3123.4,0.03781639]
[1763389527945,0.5008,3125.3,3123.4,1.15283436]
[1763389528138,0.002,3125.3,3123.5,0.0058]
[1763389528342,0.405504,3124.8,3123.4,1.14703436]
[1763389528637,1.44318374,3124.8,3123.4,1.14703436]
[1763389528937,1.94198374,3124.8,3123.4,0.0058]
[1763389529145,0.405504,3124.8,3123.5,0.0058]
[1763389529326,0.5008,3125.3,3123.6,0.03201434]
[1763389529638,0.5008,3125.3,3123.5,0.0058]
[1763389529639,0.002,3125.3,3123.5,0.0058]
[1763389529801,0.6821,3125.1,3123.5,1.15283436]
[1763389530341,0.405504,3124.9,3123.6,0.0058]
[1763389530556,1.31249664,3124.9,3123.6,0.0058]
[1763389530711,0.405504,3124.7,3123.6,0.0058]
[1763389531848,0.405504,3124.5,3123.4,1.14703436]
[1763389532139,0.405504,3124.5,3123.3,1.14703436]
[1763389532347,8.97100475,3124.5,3123.3,1.14703436]
[1763389533066,0.405504,3124.3,3123.3,1.14703436]
[1763389533250,8.56550075,3125.0,3124.4,0.0058]
[1763389533610,8.56550075,3125.0,3123.8,1.14703436]
[1763389533611,0.4988,3124.9,3123.8,1.14703436]
[1763389533812,0.4988,3124.9,3123.9,0.03201126]
[1763389534012,0.405504,3124.8,3123.8,1.14703436]
[1763389534458,0.405504,3124.8,3123.9,0.03201126]
[1763389534946,0.002,3124.9,3123.8,1.14703436]
[1763389535135,0.002,3124.9,3123.9,1.18484562]
[1763389535334,0.405504,3124.8,3123.8,1.14703436]
[1763389535540,0.904304,3124.8,3123.8,1.14703436]
[1763389535740,0.904304,3124.8,3123.7,1.31918951]
[1763389535925,0.904304,3124.8,3123.5,1.72155154]
[1763389535926,0.405504,3124.3,3123.6,1.14703436]
[1763389536266,0.405504,3124.3,3123.5,0.001]
[1763389536430,0.904304,3124.3,3123.5,0.001]
[1763389536632,1.81129664,3124.3,3123.5,0.001]
[1763389536831,0.598404,3123.6,3123.5,0.001]
[1763389537030,1.080504,3123.6,3123.5,0.001]
[1763389537361,1.579304,3123.6,3123.5,0.001]
[1763389537563,1.82793366,3123.6,3123.5,0.001]
[1763389538149,1.82713366,3123.6,3123.5,0.001]
[1763389538965,8.97100475,3123.2,3122.4,1.14703436]
[1763389539150,9.45310475,3123.2,3122.4,1.14703436]
[1763389539348,10.89721523,3123.2,3122.4,1.14703436]
[1763389539542,10.89721523,3123.2,3122.3,1.14703436]
[1763389539543,11.80420787,3123.2,3122.3,1.14703436]
[1763389539743,11.80420787,3123.2,3122.2,1.14703436]
[1763389540468,0.405504,3122.5,3121.8,1.14703436]
[1763389540668,0.405504,3123.1,3122.0,1.14703436]
[1763389540843,0.405504,3123.1,3122.1,1.14703436]
[1763389541051,0.405504,3123.3,3122.2,1.14703436]
[1763389541365,0.405504,3123.3,3122.3,1.17906203]
[1763389541552,0.90699264,3123.5,3122.3,1.17906203]
[1763389541867,0.1929,3124.1,3123.4,0.0076]
[1763389542067,0.1929,3124.4,3123.0,1.14703436]
[1763389542241,1.09933008,3124.4,3123.2,1.14703436]
[1763389542448,2.00632272,3124.4,3123.2,1.14703436]
[1763389542643,1.09933008,3124.4,3123.2,1.14703436]
[1763389542854,0.405504,3124.3,3123.3,1.14703436]
[1763389543064,1.09989264,3124.4,3123.3,1.14703436]
[1763389543262,0.405504,3124.3,3123.3,1.14703436]
[1763389543770,0.405504,3124.3,3123.4,0.03201639]
[1763389544175,0.405504,3124.3,3123.3,1.14703436]
[1763389544371,0.405504,3124.3,3123.4,1.14703436]
[1763389544674,1.31249664,3123.9,3123.1,1.14703436]
[1763389544968,1.31249664,3123.9,3122.9,1.14703436]
[1763389545367,1.31249664,3123.9,3123.0,1.14703436]
[1763389545596,0.405504,3124.2,3123.1,1.14703436]
[1763389545778,0.405504,3124.2,3123.2,1.14703436]
[1763389545954,8.56550075,3124.5,3123.5,1.14703436]
[1763389546272,0.90899264,3124.9,3123.6,1.14703436]
[1763389546459,0.90899264,3124.9,3123.7,1.14703436]
[1763389546659,1.92465198,3124.9,3123.8,1.14703436]
[1763389546864,0.002,3124.9,3123.9,1.18664562]
[1763389547062,0.002,3124.9,3124.3,1.14703436]
[1763389547362,0.002,3124.9,3123.9,0.0076]
[1763389547363,0.002,3124.9,3124.4,1.14703436]
[1763389547553,0.002,3124.9,3124.5,1.14703436]
[1763389548359,0.002,3124.9,3124.6,0.03200409]
[1763389548546,0.002,3124.9,3124.5,1.15463436]
[1763389548993,0.002,3124.9,3124.5,1.14703436]
[1763389549293,8.76040075,3124.9,3124.4,1.14703436]
[1763389549506,0.405504,3124.8,3124.2,1.14703436]
[1763389550300,0.002,3124.9,3124.3,0.0076]
[1763389550500,0.002,3124.9,3124.4,1.14703436]
[1763389550711,0.002,3124.9,3124.3,0.0076]
[1763389550712,0.002,3124.9,3124.5,1.15463436]
[1763389550875,0.002,3124.9,3124.5,1.14703436]
[1763389551277,0.002,3124.9,3124.4,1.14703436]
[1763389551278,0.1949,3124.9,3124.4,1.14703436]
[1763389551597,0.002,3124.9,3124.5,1.17903948]
[1763389551782,0.002,3124.9,3124.4,1.14703436]
[1763389552107,0.002,3124.9,3124.5,1.14703436]
[1763389552307,0.002,3124.9,3124.4,1.14703436]
[1763389552664,0.002,3124.9,3124.5,1.14703436]
[1763389553002,0.002,3124.9,3124.8,0.0076]
[1763389553171,0.002,3124.9,3124.8,0.19121556]
[1763389553371,0.002,3124.9,3124.8,0.2232176]
[1763389553812,0.002,3124.9,3124.8,0.19121556]
[1763389553972,0.002,3124.9,3124.8,0.0152]
[1763389554171,0.002,3124.9,3124.8,0.04720204]
[1763389554370,0.002,3124.9,3124.8,0.0152]
[1763389554687,0.002,3124.9,3124.8,0.04720204]
[1763389555170,0.002,3124.9,3124.8,0.0152]
[1763389557111,0.002,3124.9,3124.8,1.18502477]
[1763389557317,0.002,3124.9,3124.8,1.47533027]
[1763389557996,0.002,3124.9,3124.8,1.43572823]
[1763389558372,0.002,3124.9,3124.8,1.14542273]
[1763389558575,0.002,3124.9,3124.8,1.18502477]
[1763389558776,0.002,3124.9,3124.8,1.16062273]
[1763389558972,0.002,3124.9,3124.8,0.0152]
[1763389559188,0.002,3124.9,3124.8,1.15967401]
[1763389559407,0.002,3124.9,3124.8,1.533744]
[1763389559643,0.6739,3124.9,3124.6,1.14447401]
[1763389559918,0.002,3124.9,3124.8,0.0076]
[1763389560389,0.002,3124.9,3124.4,1.14447401]
[1763389560801,0.002,3124.9,3124.3,1.14447401]
[1763389560802,0.4938,3124.8,3124.3,1.14447401]
[1763389561317,0.4938,3124.8,3123.5,0.001]
[1763389561318,0.405504,3124.3,3123.5,1.14547401]
[1763389561476,0.405504,3124.0,3123.5,0.001]
[1763389561879,0.002,3124.9,3123.9,0.0084]
[1763389562110,0.002,3124.9,3124.4,0.0084]
[1763389562415,0.002,3124.9,3124.2,1.14447401]
[1763389562711,0.002,3124.9,3124.1,1.14447401]
[1763389562898,0.002,3124.9,3124.2,1.14447401]
[1763389563212,0.002,3124.9,3124.8,0.0084]
[1763389564430,0.002,3124.9,3124.5,1.14447401]
[1763389564641,0.002,3124.9,3124.6,0.20598667]
[1763389564934,0.4958,3124.9,3124.2,1.14447401]
[1763389565145,0.002,3124.9,3124.3,0.03200716]
[1763389565347,0.002,3124.9,3124.3,1.18488117]
[1763389565631,0.002,3124.9,3124.8,0.0084]
[1763389566835,0.002,3124.9,3124.5,1.14447401]
[1763389567130,0.002,3124.9,3124.6,0.03200409]
[1763389567640,0.002,3124.9,3124.8,0.0084]
[1763389567837,0.002,3124.9,3124.5,1.14447401]
[1763389568200,0.002,3124.9,3124.8,0.0084]
[1763389569304,0.002,3124.9,3124.8,1.15287401]
[1763389569624,0.002,3124.9,3124.8,1.5306637]
[1763389570028,0.002,3124.9,3124.8,0.42659173]
[1763389570227,0.002,3124.9,3124.8,0.04880204]
[1763389570443,0.002,3124.9,3124.8,0.0168]
[1763389570694,0.002,3124.9,3124.8,0.04880204]
[1763389570941,0.002,3124.9,3124.5,3.20106137]
[1763389571162,0.4845,3124.6,3124.3,1.1459563]
[1763389571303,0.4845,3124.2,3124.0,1.1459563]
[1763389571508,0.1874,3124.0,3123.5,1.1469563]
[1763389571703,0.4845,3123.8,3123.6,1.1459563]
[1763389571962,0.4845,3123.8,3123.5,0.28757932]
[1763389571963,0.4845,3123.8,3123.5,1.43353562]
[1763389572120,0.4938,3123.8,3123.5,1.43353562]
[1763389573204,0.4938,3123.8,3123.5,1.1469563]
[1763389573607,0.1874,3124.0,3123.5,1.1469563]
[1763389573807,0.4938,3123.9,3123.5,1.1469563]
[1763389574037,0.405504,3124.4,3123.6,1.17797064]
[1763389574237,0.405504,3124.4,3123.8,1.1543563]
[1763389574440,0.4938,3124.8,3123.8,1.1543563]
[1763389574441,0.4938,3124.8,3123.8,1.47772924]
[1763389574644,8.33487963,3125.2,3123.9,1.17796756]
[1763389574802,0.405504,3124.8,3124.0,1.1459563]
[1763389575003,0.405504,3124.8,3123.9,1.17796756]
[1763389575204,0.6832,3124.9,3124.0,1.1459563]